Cogmind - Beta 16.1 @@@ ROGUE MODE // 2026.04.12 @ 12:37:11 Player: Thqwib-Linux Result: Self-destructed Performance ------------- Evolutions (7) 3500 Regions Visited (18) 3600 Robots Destroyed (122) 610 Value Destroyed (3876) 3876 Prototype IDs (53) 1060 Alien Tech Used (0) 0 Bonus (2899) 2899 TOTAL SCORE: 15545 Bonus ------- High Alert Combat Kills 16 Follower Combat Kills 253 Entered DSFs 1000 Aligned with FarCom 300 Acquired ECA 300 Met Warlord at Base 500 MAIN.C Attacked Warlord 500 Warlord Defense Kills 30 Cogmind --------- Core Integrity 1246/1300 Matter 31/300 Energy 15/100 System Corruption 0% Temperature Cool (0) Movement Core (550) Ox10 Location -3/DSF Parts ------- > --- POWER (2) -------- (None) > --- PROPULSION (7) --- Improved Gravmag System Combat Airjet (fused) Antigrav System Combat Gravmag System Combat Linear Gravjet > --- UTILITY (9) ------ Advanced Cryofiber Web Advanced Heat Sink Large Storage Unit Transport Network Coupler Advanced Targeting Computer Core Analyzer Armor Integrity Analyzer Hacking Suite > --- WEAPON (3) ------- Improved Arc Projector Improved Arc Projector > --- INVENTORY (15) --- Antigrav System Advanced Targeting Computer Advanced Transmission Jammer Advanced Shield Generator Dispersion Rifle High-powered Shotgun Coil Gun KE Penetrator Advanced KE Penetrator Tactical Quantum Warhead Peak State ------------ > --- POWER ------------ Light Antimatter Reactor Light Antimatter Reactor > --- PROPULSION ------- Combat Airjet Antigrav System Combat Gravmag System Improved Linear Gravjet Combat Linear Gravjet Combat Linear Gravjet > --- UTILITY ---------- Advanced Heat Sink Large Storage Unit Experimental Terrain Scan Processor Advanced Targeting Computer Advanced Transmission Jammer Improved Medium Armor Plating Hacking Suite Hacking Suite > --- WEAPON ----------- Railgun Advanced KE Penetrator Vortex Lance > --- INVENTORY -------- Light Angular Momentum Engine Antimatter Reactor Improved Gravmag System Transport Network Coupler Advanced Targeting Computer Core Analyzer Armor Integrity Analyzer Stasis Canceller Advanced Reaction Control System Dispersion Rifle KE Penetrator Enhanced Gauss Cannon Tactical Quantum Warhead RU-N14's Throwing Claymores v3 [Rating: 121] Favorites ----------- Power Light Antimatter Reactor Engine Ion Engine Power Core Micro Nuclear Core Reactor Light Antimatter Reactor Propulsion Improved Gravmag System Treads Improved Treads Leg Aluminum Leg Wheel Compact Wheel Hover Unit Improved Gravmag System Utility Hacking Suite Device Advanced Heat Sink Storage Large Storage Unit Processor Improved Targeting Computer Hackware Hacking Suite Protection Hardened Medium Armor Plating Weapon Improved Assault Rifle Energy Gun Improved Spread Laser Energy Cannon Compact HERF Cannon Ballistic Gun Improved Assault Rifle Ballistic Cannon Light Cannon Launcher Long-range Missile Launcher Special Weapon RU-N14's Throwing Claymores v3 Slashing Weapon Chainsword Piercing Weapon Vortex Lance Build | -11 -10 -10 -9 -9 -9 -8 -8 -7 -7 -6 -5 -5 -5 -5 -4 -4 -3 -3 ------- Run | Yrd Mat Min Mat Min Exi Min Mat Fac DSF Fac Fac Upp Upp War Pro Fac Res DSF Slots Evolved 14 | . . . 2 . . . 2 2 . 2 2 . . . . 2 2 . Power 1 | . . . . . . . . . . . . . . . . 1 . . Propulsion 5 | . . . . . . . 1 2 . . . . . . . 1 1 . Utility 7 | . . . 1 . . . 1 . . 2 2 . . . . . 1 . Weapon 1 | . . . 1 . . . . . . . . . . . . . . . Parts Attached 143 | 2 8 1 18 5 1 2 16 5 12 9 3 1 3 3 . 41 5 8 Power 13 | . 1 1 1 . . 1 2 . 1 . . . . . . 5 1 . Engine 7 | . 1 1 1 . . 1 1 . . . . . . . . 1 1 . Core 3 | . . . . . . . 1 . 1 . . . . . . 1 . . Reactor 3 | . . . . . . . . . . . . . . . . 3 . . Propulsion 44 | 2 1 . 7 3 . . 4 4 6 2 1 . . 1 . 10 . 3 Treads 10 | 1 . . 5 1 . . 3 . . . . . . . . . . . Leg . | . . . . . . . . . . . . . . . . . . . Wheel 6 | 1 1 . 2 2 . . . . . . . . . . . . . . Hover 28 | . . . . . . . 1 4 6 2 1 . . 1 . 10 . 3 Flight . | . . . . . . . . . . . . . . . . . . . Utility 45 | . 3 . 5 1 1 . 6 1 1 4 2 . 1 1 . 15 2 2 Device 11 | . . . . . . . 1 1 . . 1 . . . . 6 1 1 Storage 5 | . 1 . 1 . 1 . 1 . . . . . . . . 1 . . Processor 13 | . 2 . . . . . . . 1 2 1 . . 1 . 4 1 1 Hackware 4 | . . . . . . . 1 . . 2 . . . . . 1 . . Protection 12 | . . . 4 1 . . 3 . . . . . 1 . . 3 . . Artifact . | . . . . . . . . . . . . . . . . . . . Weapon 41 | . 3 . 5 1 . 1 4 . 4 3 . 1 2 1 . 11 2 3 Energy Gun 10 | . . . 1 . . . 2 . 3 1 . . . . . 1 . 2 Energy Cannon 1 | . . . . . . . . . . . . . . . . . . 1 Ballistic Gun 19 | . 1 . 4 . . 1 1 . 1 1 . 1 1 . . 7 1 . Ballistic Cannon 3 | . 2 . . . . . . . . . . . . . . 1 . . Launcher 4 | . . . . 1 . . . . . . . . 1 . . 2 . . Special Weapon 2 | . . . . . . . 1 . . . . . . . . . 1 . Impact Weapon . | . . . . . . . . . . . . . . . . . . . Slashing Weapon 1 | . . . . . . . . . . 1 . . . . . . . . Piercing Weapon 1 | . . . . . . . . . . . . . . 1 . . . . Special Melee Weapon . | . . . . . . . . . . . . . . . . . . . Unidentified Prototypes 10 | . . . . . . . 1 . . 3 . . . 1 . 4 1 . Parts Lost 38 | . . . . 4 . 1 3 . 5 . . . . 1 1 17 . 6 Power 7 | . . . . . . . . . 1 . . . . . . 4 . 2 Propulsion 13 | . . . . 2 . . 1 . 1 . . . . 1 . 6 . 2 Utility 7 | . . . . 1 . . . . 1 . . . . . . 4 . 1 Weapon 11 | . . . . 1 . 1 2 . 2 . . . . . 1 3 . 1 Highest Loss Streak 8 | . . . . 4 . 1 1 . 4 . . . . 1 1 8 . 5 To Critical Strikes . | . . . . . . . . . . . . . . . . . . . Average Backups 13 | 5 13 15 14 14 14 14 15 12 13 14 14 15 14 14 14 13 8 8 Power 1 | 1 1 1 . . 2 2 1 1 . 1 1 1 1 1 1 . . . Propulsion 3 | 3 3 4 5 6 6 6 5 . . . 1 2 2 1 1 1 . . Utility 6 | . 4 5 5 5 5 5 7 7 9 9 8 8 7 7 7 7 4 3 Weapon 3 | 1 3 5 3 1 1 . . 2 1 2 2 3 3 4 4 4 4 5 Tool/Special . | . . . . . . . . . . . . . . . . . . . Unused Backups 39 | 4 5 2 12 1 . . 3 . . 4 1 1 . 2 . 2 . 2 Power 7 | 1 1 . 2 . . . 1 . . 2 . . . . . . . . Propulsion 9 | . 1 . 5 . . . 1 . . . 1 . . . . . . 1 Utility 14 | 1 2 1 2 1 . . 1 . . 1 . . . 2 . 2 . 1 Weapon 9 | 2 1 1 3 . . . . . . 1 . 1 . . . . . . Tool/Special . | . . . . . . . . . . . . . . . . . . . Average Slot Usage (%) 98 | . 99 100 99 100 100 99 99 95 97 99 99 100 99 100 99 98 79 94 Engine 6 | . 14 14 11 11 11 11 8 . . . . . . . . 2 . 3 Core 1 | . . . . . . . . 7 6 6 5 5 5 5 5 1 4 3 Reactor 1 | . . . . . . . . . . . . . . . . 6 . . Treads 6 | . 13 14 11 11 11 11 19 . . . . . . . . . . . Wheel 5 | . 14 14 11 11 11 11 7 . . . . . . . . . . . Hover 15 | . . . . . . . . 32 36 32 29 29 29 29 29 30 19 28 Device 3 | . . . . . . . . 6 1 . 4 5 5 5 5 6 13 11 Storage 8 | . 14 14 11 11 11 11 9 7 7 6 5 5 5 5 5 5 4 4 Processor 11 | . 13 14 11 11 11 11 9 7 9 13 17 17 11 11 11 11 13 16 Hackware 8 | . . . . . . . 8 7 7 19 17 17 17 17 17 12 9 8 Protection 5 | . . . 11 11 11 11 8 . 3 . . . 4 5 5 3 . . Energy Gun 4 | . 1 . 10 10 11 . 3 15 15 7 5 5 4 3 5 1 . 1 Ballistic Gun 15 | . 16 14 18 22 22 32 23 7 6 6 5 11 9 11 10 10 12 7 Ballistic Cannon 2 | . 10 14 3 . . . . . . . . . . . . 1 . . Peak Build Rating 121 | 6 10 10 27 27 28 28 38 42 58 65 76 77 83 81 79 121 94 112 Average Rating 54 | 5 9 10 20 26 27 27 32 38 47 62 74 76 76 77 76 105 89 103 On Entrance 45 | 6 6 10 10 27 27 28 28 32 40 52 65 76 77 75 76 79 63 90 Avg Prop Armor Cover (%) 9 | 12 11 11 7 7 7 7 13 . 9 . . . . . . . . 5 Naked Turns . | . . . . . . . . . . . . . . . . . . . Heaviest Build 75 | 13 30 30 47 47 47 46 65 40 44 38 40 42 54 48 50 75 49 52 Greatest Support 84 | 20 16 16 20 16 16 16 65 44 50 51 51 50 50 51 51 75 51 84 Greatest Overweight (x) 4 | 1 2 1 2 2 2 2 4 . 1 . . . 1 . . 1 . 1 Average Overweight (x) . | . 1 1 2 2 2 2 1 . . . . . . . . . . . Largest Inventory Capacity 20 | 8 15 15 15 15 15 15 20 20 15 15 15 15 15 15 15 15 15 15 Average Capacity 15 | 8 14 15 15 15 15 15 17 15 15 15 15 15 15 15 15 15 15 15 Most Carried 20 | 7 15 15 15 15 15 15 18 20 15 15 15 15 15 15 15 15 9 10 Average Carried 13 | 5 13 14 14 14 14 14 15 11 13 14 14 15 14 14 14 14 8 8 Final Capacity 20 | 8 15 15 15 15 15 15 20 15 15 15 15 15 15 15 15 15 15 15 Final Carried 18 | 6 15 15 15 14 15 15 18 12 14 15 15 15 14 14 14 10 9 10 Class Distribution -------------------- 16% | Skirmisher 15% | Mutant 14% | Gunner 10% | Scavenger-Skirmisher 10% | Scavenger-Gunner 9% | Hacker-Mutant 8% | Hacker-Tank 8% | Hacker-Skirmisher Dominant Class ---------------- Mutant | -10/Materials Mutant | -10/Mines Gunner | -9/Materials Gunner | -9/Mines Gunner | -9/Exiles Skirmisher | -8/Mines Skirmisher | -8/Materials Scavenger-Skirmisher | -7/Factory Scavenger-Gunner | -7/DSF Hacker-Mutant | -6/Factory Hacker-Scout | -5/Factory Hacker-Gunner | -5/Upper Caves Hacker-Tank | -5/Upper Caves Hacker-Tank | -5/Warlord Hacker-Tank | -4/Proximity Caves Hacker-Skirmisher | -4/Factory Scavenger-Gunner | -3/Research Scavenger-Gunner | -3/DSF Resources | -11 -10 -10 -9 -9 -9 -8 -8 -7 -7 -6 -5 -5 -5 -5 -4 -4 -3 -3 ----------- Run | Yrd Mat Min Mat Min Exi Min Mat Fac DSF Fac Fac Upp Upp War Pro Fac Res DSF Matter Collected 4332 | 242 334 73 368 209 . 167 478 . 281 32 10 46 272 8 99 1649 35 29 Remotely . | . . . . . . . . . . . . . . . . . . . Salvage Created 5401 | 36 558 147 645 393 . 222 693 . 353 131 10 . 135 94 125 1636 61 162 Parts 274 | 5 39 3 42 27 . 10 29 . 30 3 3 . 3 . 6 67 7 . Haulers Intercepted 15 | . 2 . 4 . . . 3 . . . . . . . . 6 . . Recyclers Shooed 4 | . 1 . 1 1 . . 1 . . . . . . . . . . . Parts Field Recycled . | . . . . . . . . . . . . . . . . . . . Retrieved Matter . | . . . . . . . . . . . . . . . . . . . Parts Self-Destructed 13 | . . . . . . . . . . . . 4 3 . 6 . . . Prevented . | . . . . . . . . . . . . . . . . . . . Parts Restored . | . . . . . . . . . . . . . . . . . . . Kills | -11 -10 -10 -9 -9 -9 -8 -8 -7 -7 -6 -5 -5 -5 -5 -4 -4 -3 -3 ------- Run | Yrd Mat Min Mat Min Exi Min Mat Fac DSF Fac Fac Upp Upp War Pro Fac Res DSF Combat Hostiles Destroyed 89 | . 13 3 7 16 . 4 11 . 9 . . . 2 2 3 19 . . Melee 3 | . . . . . . . . . . . . . . . . 3 . . Guns 72 | . 7 1 7 14 . 4 10 . 9 . . . 2 2 3 13 . . Cannons 9 | . 6 2 . . . . . . . . . . . . . 1 . . AOE 4 | . . . . 2 . . . . . . . . . . . 2 . . Classes Destroyed 20 | 1 6 . 1 3 . . 1 . 3 . 1 . . 1 . 3 . . Worker 7 | . . . . . . . . . . . 1 . . . . 3 3 . Builder 2 | . . . . . . . . . . . . . . . . 2 . . Tunneler 2 | 2 . . . . . . . . . . . . . . . . . . Hauler 15 | . 2 . 4 . . . 3 . . . . . . . . 6 . . Recycler 6 | . 2 . 1 2 . . . . . 1 . . . . . . . . Operator 2 | . 1 . 1 . . . . . . . . . . . . . . . Watcher 2 | . 1 . . . . . . . . . . . . . . 1 . . Swarmer 25 | . 8 . . 8 . . . . 1 . . . 2 . 2 4 . . Cutter 3 | . . . . . . . . . 3 . . . . . . . . . Saboteur 1 | . . . . . . . . . . . . . . 1 . . . . Grunt 27 | . 5 3 2 2 . 4 8 . 2 . . . . . . 1 . . Brawler 2 | . . . . 1 . . . . . . . . . 1 . . . . Duelist 1 | . . . . . . . . . . . . . . . . 1 . . Sentry 13 | . . . 5 . . . 2 . 1 . . . . . 1 4 . . Demolisher 2 | . . . . 2 . . . . . . . . . . . . . . Specialist 1 | . . . . . . . . . 1 . . . . . . . . . Hunter 3 | . . . . . . . 1 . . . . . . . . 2 . . Programmer 7 | . . . . . . . . . . . . . . . . 7 . . Heavy 1 | . . . . . . . . . 1 . . . . . . . . . Assembled 3 | . . . . 3 . . . . . . . . . . . . . . Best Kill Streak 9 | 1 3 2 2 6 . 2 4 . 9 1 1 . 2 1 2 4 3 . Combat Bots Only 9 | . 3 2 2 6 . 2 4 . 9 . . . 2 1 2 4 . . Max Kills in Single Turn 2 | 1 1 1 1 2 . 1 1 . 2 1 1 . 1 1 1 2 1 . Gunslinging 1 | . . . . 1 . . . . . . . . . . . 1 . . Exploded 2 | . . . . 1 . . . . . . . . . . . 2 . . Melee 1 | . . . . . . . . . . . . . . . . 1 . . Uniques/NPCs Destroyed . | . . . . . . . . . . . . . . . . . . . Combat | -11 -10 -10 -9 -9 -9 -8 -8 -7 -7 -6 -5 -5 -5 -5 -4 -4 -3 -3 -------- Run | Yrd Mat Min Mat Min Exi Min Mat Fac DSF Fac Fac Upp Upp War Pro Fac Res DSF Hostile Shots Fired 633 | . 44 13 18 45 . 17 72 . 108 . . . 13 3 27 198 . 75 Missed 238 | . 17 4 5 10 . 7 15 . 51 . . . 8 2 11 79 . 29 Hits 395 | . 27 9 13 35 . 10 57 . 57 . . . 5 1 16 119 . 46 Projectile 395 | . 27 9 13 35 . 10 57 . 57 . . . 5 1 16 119 . 46 AOE 19 | . . . . 14 . . . . 2 . . . . 3 . . . . Critical Strikes 11 | . . 1 . 1 . . 3 . . . . . . . . 5 . 1 Part Disruptions 2 | . . . . 1 . . . . . . . . . . . 1 . . Damage Taken 7752 | . 255 101 191 913 . 261 903 . 825 . . . 181 101 376 2902 . 743 Core 758 | . 23 11 43 102 . . 93 . 45 . . . 19 34 . 334 . 54 Absorbed by Shields 93 | . . . . . . . . . 93 . . . . . . . . . Regen/Repaired (Parts) 379 | . 53 . 41 . . . 135 84 . 9 . . . 7 . 50 . . Core Remaining (%) 86 | 100 . 86 . . . 63 83 . 93 100 . . . . 94 70 . . Volleys Fired 313 | 9 34 9 31 31 . 11 47 . 16 6 2 . 11 4 5 84 5 8 Largest 3 | 2 2 2 3 3 . 3 3 . 3 3 2 . 2 3 3 3 3 3 Hottest 161 | 60 50 50 128 121 . 121 139 . 161 161 105 . 105 128 128 156 98 130 Shots Fired 750 | 18 67 18 92 83 . 33 131 . 43 13 4 . 14 10 15 186 9 14 Gun 639 | 18 39 9 82 77 . 33 130 . 41 13 4 . 6 10 15 145 7 10 Cannon 88 | . 28 9 10 . . . . . . . . . . . . 40 . 1 Launcher 13 | . . . . 6 . . . . . . . . 6 . . 1 . . Special 10 | . . . . . . . 1 . 2 . . . 2 . . . 2 3 Kinetic 567 | 9 67 18 61 52 . 32 107 . 13 4 2 . 4 8 10 171 7 2 Thermal 151 | 9 . . 31 25 . 1 23 . 28 9 2 . 2 2 5 14 . . Explosive 18 | . . . . 6 . . . . . . . . 6 . . 1 2 3 Electromagnetic 9 | . . . . . . . . . . . . . . . . . . 9 Robot Hit Streak 19 | 2 9 5 19 10 . 13 16 . 11 9 4 . 4 4 4 13 4 9 Robot Miss Streak 6 | 6 3 3 2 4 . 3 3 . 3 1 2 . 4 4 3 6 . 2 Penetration Max 1 | . . . . . . . . . . . . . . . . 1 . . Secondary Targets 10 | . . . . 5 . 1 . . . . . . . . . 4 . . Max Gunslinging Chain 1 | . . . . 1 . 1 . . . . . . . . . 1 . . Shots Hit Robots 475 | 6 44 11 60 47 . 24 88 . 25 10 5 . 6 6 7 123 3 10 Core Hits 226 | 3 22 3 16 26 . 11 33 . 15 6 4 . 4 7 10 56 3 7 Critical Kills 4 | . . . . 1 . 1 . . . . . . . . . 2 . . Critical Parts Destroyed 8 | . . . . . . . 1 . . . . . . . . 7 . . Critical Strikes 24 | . 2 . 2 3 . 1 3 . . . . . . . . 13 . . Burn 5 | . . . 1 2 . . 2 . . . . . . . . . . . Destroy 12 | . . . . 1 . 1 1 . . . . . . . . 9 . . Blast 6 | . 2 . 1 . . . . . . . . . . . . 3 . . Sunder 1 | . . . . . . . . . . . . . . . . 1 . . Melee Attacks 42 | . . . . . . . . . . 4 6 . . . . 32 . . Impact . | . . . . . . . . . . . . . . . . . . . Slashing 10 | . . . . . . . . . . 4 6 . . . . . . . Piercing . | . . . . . . . . . . . . . . . . . . . Entropic 32 | . . . . . . . . . . . . . . . . 32 . . Sneak Attacks 7 | . . . . . . . . . . 1 1 . . . . 5 . . Combat Hostiles 1 | . . . . . . . . . . . . . . . . 1 . . Follow-up Attacks . | . . . . . . . . . . . . . . . . . . . Damage Inflicted 12099 | 90 657 185 1063 1196 . 358 1223 . 453 257 168 . 65 90 126 5496 62 610 Guns 7981 | 90 378 94 981 885 . 358 1223 . 453 173 80 . 65 90 126 2807 62 116 Cannons 806 | . 279 91 82 . . . . . . . . . . . . 354 . . Explosions 1225 | . . . . 311 . . . . . . . . . . . 495 . 419 Melee 2012 | . . . . . . . . . . 84 88 . . . . 1840 . . Ramming . | . . . . . . . . . . . . . . . . . . . Kinetic 6534 | 33 657 185 489 507 . 336 991 . 116 53 44 . 42 67 41 2866 62 45 Thermal 2677 | 57 . . 574 378 . 22 232 . 337 120 36 . 23 23 85 790 . . Explosive 730 | . . . . 311 . . . . . . . . . . . . . 419 Electromagnetic 71 | . . . . . . . . . . . . . . . . . . 71 Impact . | . . . . . . . . . . . . . . . . . . . Slashing 247 | . . . . . . . . . . 84 88 . . . . . . 75 Piercing . | . . . . . . . . . . . . . . . . . . . Entropic 1840 | . . . . . . . . . . . . . . . . 1840 . . Highest Corruption 21 | . . . . . . . . . . . . . . . . 21 . . Average Corruption 7 | . . . . . . . . . . . . . . . . 7 . . Corruption Purged . | . . . . . . . . . . . . . . . . . . . Corruption Blocked . | . . . . . . . . . . . . . . . . . . . Effects 52 | . . . . . . . . . . . . . . . . 52 . . Message Errors 13 | . . . . . . . . . . . . . . . . 13 . . Matter Fused 14 | . . . . . . . . . . . . . . . . 14 . . Heat Flow Errors 5 | . . . . . . . . . . . . . . . . 5 . . Energy Discharges 3 | . . . . . . . . . . . . . . . . 3 . . Parts Rejected 1 | . . . . . . . . . . . . . . . . 1 . . Parts Fused 1 | . . . . . . . . . . . . . . . . 1 . . Data Loss (minor) 7 | . . . . . . . . . . . . . . . . 7 . . Data Loss (major) 2 | . . . . . . . . . . . . . . . . 2 . . Misfires 2 | . . . . . . . . . . . . . . . . 2 . . Alerts 1 | . . . . . . . . . . . . . . . . 1 . . Weapon Failures 3 | . . . . . . . . . . . . . . . . 3 . . Overload Shots . | . . . . . . . . . . . . . . . . . . . Overflow Damage 706 | . 9 . 8 5 . . . . . 44 . . . . . 640 . . Projectiles 17 | . 9 . 8 . . . . . . . . . . . . . . . Explosions 146 | . . . . 5 . . . . . . . . . . . 141 . . Melee 543 | . . . . . . . . . . 44 . . . . . 499 . . Knockbacks 7 | . . 3 1 . . . . . . . . . . . . 3 . . Impact . | . . . . . . . . . . . . . . . . . . . Kinetic 6 | . . 2 1 . . . . . . . . . . . . 3 . . Secondary 1 | . . 1 . . . . . . . . . . . . . . . . Self-Inflicted Damage 320 | . . . . 57 . . . . . . . . 86 . . 177 . . Shots 10 | . . . . 5 . . . . . . . . 2 . . 3 . . Rammed . | . . . . . . . . . . . . . . . . . . . Targets Rammed . | . . . . . . . . . . . . . . . . . . . Kicked . | . . . . . . . . . . . . . . . . . . . Crushed . | . . . . . . . . . . . . . . . . . . . Highest Temperature 482 | . 12 23 282 314 . 113 338 . 90 105 92 . 74 82 168 482 . 32 Average Temperature 97 | . 3 10 85 129 . 45 75 . 37 43 48 . 30 33 68 114 . 13 Received Heat Transfer 1299 | . 75 66 54 108 . 90 432 . 27 . . . 27 . 36 120 . 264 Effects 13 | . . . 2 3 . . . . . . . . . . . 8 . . Shutdowns 4 | . . . . . . . . . . . . . . . . 4 . . Energy Bleed 5 | . . . 2 . . . . . . . . . . . . 3 . . Interference 3 | . . . . 3 . . . . . . . . . . . . . . Short Circuit 1 | . . . . . . . . . . . . . . . . 1 . . Siege Activations . | . . . . . . . . . . . . . . . . . . . Martial Activations . | . . . . . . . . . . . . . . . . . . . Shielding Activations . | . . . . . . . . . . . . . . . . . . . Robots Disrupted . | . . . . . . . . . . . . . . . . . . . Combat Hostiles . | . . . . . . . . . . . . . . . . . . . Robots Corrupted . | . . . . . . . . . . . . . . . . . . . Combat Hostiles . | . . . . . . . . . . . . . . . . . . . Parts Fried . | . . . . . . . . . . . . . . . . . . . Impact Corruptions . | . . . . . . . . . . . . . . . . . . . Robots Melted 1 | . . . . . . . 1 . . . . . . . . . . . Combat Hostiles 1 | . . . . . . . 1 . . . . . . . . . . . Parts Melted 7 | . . . 1 1 . . 2 . . 1 . . . 2 . . . . Heat Transferred 4422 | 125 . . 1073 777 . 37 703 . 666 205 30 . 20 17 70 699 . . Parts Sabotaged . | . . . . . . . . . . . . . . . . . . . Parts Stolen . | . . . . . . . . . . . . . . . . . . . Parts Stripped . | . . . . . . . . . . . . . . . . . . . Power Chain Reactions . | . . . . . . . . . . . . . . . . . . . Alert | -11 -10 -10 -9 -9 -9 -8 -8 -7 -7 -6 -5 -5 -5 -5 -4 -4 -3 -3 ------- Run | Yrd Mat Min Mat Min Exi Min Mat Fac DSF Fac Fac Upp Upp War Pro Fac Res DSF Maximum Alert Level 2 | . . . . 1 . . . . 1 . . . . . . 2 1 1 Low Security (%) 91 | 100 100 100 100 97 . 100 100 100 79 100 100 . . . . 85 4 60 Level 1 8 | . . . . 2 . . . . 21 . . . . . . 12 95 39 Level 2 . | . . . . . . . . . . . . . . . . 1 . . Level 3 . | . . . . . . . . . . . . . . . . . . . Level 4 . | . . . . . . . . . . . . . . . . . . . Level 5 . | . . . . . . . . . . . . . . . . . . . High Security . | . . . . . . . . . . . . . . . . . . . Max Security . | . . . . . . . . . . . . . . . . . . . Sterilizations 1 | . . . . . . . . . 1 . . . . . . . . . Peak Influence 445 | 5 175 115 79 200 . 70 126 40 275 144 20 . . . . 445 267 242 Initial 233 | . . 41 9 . . . . 40 2 144 . . . . . . 233 159 Average 74 | 1 82 61 20 115 . 14 32 8 95 46 3 . . . . 114 224 188 Influence Increases 3963 | 10 414 209 342 454 . 120 453 5 323 26 58 . 136 20 60 1120 120 93 Destroy 0b10 Robot/C 1900 | . 260 140 160 260 . 80 280 . 220 . . . 40 20 60 380 . . Destroy 0b10 Robot/NC 195 | 10 30 . 30 10 . . 15 . . 5 5 . 5 . . 60 15 10 Destroy Leader 444 | . 66 30 68 50 . 10 76 . 30 . . . . . . 114 . . Allied During Kill 30 | . . 9 2 . . . 5 . 13 . . . 1 . . . . . Successful Hack 325 | . 57 . 46 . . . 29 5 . 18 30 . . . . 65 75 . Disable Machine 240 | . . . 15 75 . . . . 15 . 15 . . . . 105 . 15 Destroy Structure 349 | . 1 . 6 14 . . 3 . . 3 8 . . . . 246 30 38 Partial Spotted 60 | . . . . . . . . . . . . . . . . 45 . 15 Lose Combat Pursuer 420 | . . 30 15 45 . 30 45 . 45 . . . 90 . . 105 . 15 Influence Decreases 3771 | 10 307 291 367 318 136 120 363 91 52 301 53 5 136 20 60 675 352 114 Entered New Map 670 | . . 66 16 . 136 . . 50 2 131 . 3 . . . . 212 54 Time Decay 2596 | 10 307 190 331 278 . 110 313 41 . 170 53 2 96 20 50 485 140 . Lost Part 370 | . . . . 40 . 10 30 . 50 . . . . . 10 170 . 60 Lost Ally 115 | . . 35 20 . . . 20 . . . . . 40 . . . . . Purge Threat 20 | . . . . . . . . . . . . . . . . 20 . . Squads Dispatched 27 | . 2 . 1 1 . . 2 . 3 3 . . . . . 12 . 3 Investigation 4 | . 1 . . 1 . . 1 . . . . . . . . 1 . . Extermination 7 | . . . . . . . . . . 1 . . . . . 6 . . Reinforcement 15 | . 1 . 1 . . . 1 . 3 2 . . . . . 4 . 3 Assault . | . . . . . . . . . . . . . . . . . . . Garrison 1 | . . . . . . . . . . . . . . . . 1 . . Intercept . | . . . . . . . . . . . . . . . . . . . Searches Triggered . | . . . . . . . . . . . . . . . . . . . Construction Impeded 1 | . . . . . . . . . . 1 . . . . . . . . Haulers Reinforced 2 | . . . . . . . . . . . . . . . . 2 . . Active Scanning Responses . | . . . . . . . . . . . . . . . . . . . Cargo Convoy Interrupts . | . . . . . . . . . . . . . . . . . . . Stealth | -11 -10 -10 -9 -9 -9 -8 -8 -7 -7 -6 -5 -5 -5 -5 -4 -4 -3 -3 --------- Run | Yrd Mat Min Mat Min Exi Min Mat Fac DSF Fac Fac Upp Upp War Pro Fac Res DSF Distress Signals 1 | . . . . . . . 1 . . . . . . . . . . . Communications Jammed 8 | . . . . . . . . . . . . . . . . 4 4 . Distress Signals 8 | . . . . . . . . . . . . . . . . 4 4 . Times Spotted 190 | . 28 7 11 23 . 7 19 . 15 2 2 . 10 20 4 38 1 3 Peak Tracking Total 12 | . 5 3 4 5 . 3 4 . 6 1 2 . 6 12 3 7 1 2 Tactical Retreats 18 | . . 1 1 2 . 1 3 . 3 . . . 2 . . 4 . 1 Traps | -11 -10 -10 -9 -9 -9 -8 -8 -7 -7 -6 -5 -5 -5 -5 -4 -4 -3 -3 ------- Run | Yrd Mat Min Mat Min Exi Min Mat Fac DSF Fac Fac Upp Upp War Pro Fac Res DSF Traps Triggered 8 | . 1 . . . . . . . 3 . 1 . . . . 3 . . Indirectly . | . . . . . . . . . . . . . . . . . . . Trap Hack Attempts . | . . . . . . . . . . . . . . . . . . . Triggered . | . . . . . . . . . . . . . . . . . . . Disarmed 1 | . 1 . . . . . . . . . . . . . . . . . Reprogrammed . | . . . . . . . . . . . . . . . . . . . Reused . | . . . . . . . . . . . . . . . . . . . Traps Extracted . | . . . . . . . . . . . . . . . . . . . Installed . | . . . . . . . . . . . . . . . . . . . Triggered . | . . . . . . . . . . . . . . . . . . . Machines | -11 -10 -10 -9 -9 -9 -8 -8 -7 -7 -6 -5 -5 -5 -5 -4 -4 -3 -3 ---------- Run | Yrd Mat Min Mat Min Exi Min Mat Fac DSF Fac Fac Upp Upp War Pro Fac Res DSF Machines Disabled 16 | . . . 1 5 . . . . 1 . 1 . . . . 7 . 1 Max in Single Turn 5 | . . . 1 1 . . . . 1 . 1 . . . . 5 . 1 Garrison Access 1 | . . . . . . . . . . 1 . . . . . . . . Machines Repaired . | . . . . . . . . . . . . . . . . . . . Machines Dismantled . | . . . . . . . . . . . . . . . . . . . Machines Sabotaged . | . . . . . . . . . . . . . . . . . . . Overloaded Fab Kills . | . . . . . . . . . . . . . . . . . . . Hacking | -11 -10 -10 -9 -9 -9 -8 -8 -7 -7 -6 -5 -5 -5 -5 -4 -4 -3 -3 --------- Run | Yrd Mat Min Mat Min Exi Min Mat Fac DSF Fac Fac Upp Upp War Pro Fac Res DSF Machines Accessed 61 | . 9 . 6 1 2 . 5 2 . 9 4 1 . 5 . 12 5 . Terminals 33 | . 8 . 4 . . . 4 1 . 5 3 . . . . 7 1 . Fabricators 3 | . . . . . . . . . . 1 1 . . . . 1 . . Repair Stations 9 | . 1 . 1 . . . 1 1 . 1 . . . . . 3 1 . Recycling Units 1 | . . . . . . . . . . . . . . . . . 1 . Scanalyzers 5 | . . . 1 . . . . . . 1 . . . . . 1 2 . Garrison Access 1 | . . . . . . . . . . 1 . . . . . . . . Total Hacks 200 | . 31 . 24 1 2 . 14 11 . 26 12 1 . 11 . 57 10 . Successful 118 | . 16 . 12 1 2 . 11 9 . 14 6 1 . 11 . 28 7 . Failed 80 | . 15 . 11 . . . 3 2 . 12 6 . . . . 28 3 . Catastrophic 6 | . 1 . . . . . . . . 2 1 . . . . 1 1 . Database Lockouts 2 | . . . 1 . . . . . . . . . . . . 1 . . Manual 73 | . 20 . 8 . 1 . 7 . . 9 7 . . . . 21 . . Terminals 117 | . 26 . 12 . . . 11 1 . 14 11 . . . . 41 1 . Fabricators 5 | . . . . . . . . . . 1 1 . . . . 3 . . Repair Stations 39 | . 5 . 6 . . . 3 10 . 4 . . . . . 8 3 . Recycling Units 2 | . . . . . . . . . . . . . . . . . 2 . Scanalyzers 21 | . . . 6 . . . . . . 6 . . . . . 5 4 . Garrison Access 1 | . . . . . . . . . . 1 . . . . . . . . Terminal Hacks 54 | . 7 . 4 1 2 . 4 1 . 4 4 1 . 11 . 14 1 . Record 11 | . . . . . 1 . . . . . . 1 . 9 . . . . Part Schematic 3 | . . . . . . . . . . . . . . . . 3 . . Robot Analysis 3 | . 2 . . . . . . . . . . . . . . 1 . . Prototype ID Bank 10 | . 3 . 1 . . . 1 . . 3 1 . . . . 1 . . Open Door 3 | . . . . 1 . . . . . . . . . 2 . . . . Open DSF 3 | . . . . . . . . 1 . 1 . . . . . . 1 . Level Access Points 1 | . . . . . . . 1 . . . . . . . . . . . Branch Access Points 1 | . . . . . . . . . . . 1 . . . . . . . Terminal Index 1 | . . . . . . . . . . . 1 . . . . . . . Alert Level 1 | . . . 1 . . . . . . . . . . . . . . . Unreport Threat 3 | . . . . . . . . . . . . . . . . 3 . . Locate Traps 1 | . 1 . . . . . . . . . . . . . . . . . Disarm Traps 1 | . 1 . . . . . . . . . . . . . . . . . Transport Status 2 | . . . . . . . . . . . . . . . . 2 . . Recall Investigation 1 | . . . . . . . . . . . . . . . . 1 . . Recall Reinforcements 1 | . . . . . . . . . . . . . . . . 1 . . Hauler Manifests 4 | . . . 1 . . . 1 . . . 1 . . . . 1 . . Registered Components 2 | . . . 1 . . . 1 . . . . . . . . . . . Registered Prototypes 1 | . . . . . . . . . . . . . . . . 1 . . Proto ID Catalog 1 | . . . . . 1 . . . . . . . . . . . . . Fabricator Hacks 4 | . . . . . . . . . . 1 . . . . . 3 . . Network Status 2 | . . . . . . . . . . 1 . . . . . 1 . . Load Schematic 1 | . . . . . . . . . . . . . . . . 1 . . Build 1 | . . . . . . . . . . . . . . . . 1 . . Repair Station Hacks 23 | . 3 . 3 . . . 2 8 . 2 . . . . . 4 1 . Scan Component 14 | . 2 . 2 . . . 1 5 . 1 . . . . . 2 1 . Repair 9 | . 1 . 1 . . . 1 3 . 1 . . . . . 2 . . Recycling Unit Hacks 2 | . . . . . . . . . . . . . . . . . 2 . Process 1 | . . . . . . . . . . . . . . . . . 1 . Retrieve Matter 1 | . . . . . . . . . . . . . . . . . 1 . Scanalyzer 14 | . . . 3 . . . . . . 5 . . . . . 3 3 . Insert Component 7 | . . . 1 . . . . . . 2 . . . . . 2 2 . Analyze 5 | . . . 2 . . . . . . 2 . . . . . 1 . . Retrieve Study 2 | . . . . . . . . . . 1 . . . . . . 1 . Garrison Access Hacks 1 | . . . . . . . . . . 1 . . . . . . . . Seal Access 1 | . . . . . . . . . . 1 . . . . . . . . Unauthorized Hacks 20 | . 6 . 2 . . . 5 . . 1 2 . . . . 4 . . Terminals 20 | . 6 . 2 . . . 5 . . 1 2 . . . . 4 . . Assimilate 4 | . . . . . . . 2 . . 1 1 . . . . . . . Botnet 15 | . 6 . 2 . . . 2 . . . 1 . . . . 4 . . Disrupt 1 | . . . . . . . 1 . . . . . . . . . . . Fabricators . | . . . . . . . . . . . . . . . . . . . Repair Stations . | . . . . . . . . . . . . . . . . . . . Recycling Units . | . . . . . . . . . . . . . . . . . . . Scanalyzers . | . . . . . . . . . . . . . . . . . . . Garrison Access . | . . . . . . . . . . . . . . . . . . . Data Cores Recovered . | . . . . . . . . . . . . . . . . . . . Used . | . . . . . . . . . . . . . . . . . . . Hacking Detections 48 | . 9 . 5 . . . 5 2 . 8 4 . . . . 10 5 . Full Trace Events 1 | . . . . . . . 1 . . . . . . . . . . . Feedback Events . | . . . . . . . . . . . . . . . . . . . Feedback Blocked . | . . . . . . . . . . . . . . . . . . . Robot Schematics Acquired . | . . . . . . . . . . . . . . . . . . . Robots Built . | . . . . . . . . . . . . . . . . . . . Authchips . | . . . . . . . . . . . . . . . . . . . Time . | . . . . . . . . . . . . . . . . . . . Total Robot Build Rating . | . . . . . . . . . . . . . . . . . . . Part Schematics Acquired 7 | . . . 1 . . . . . . 2 . . . . . 4 . . Parts Built 2 | . . . . . . . . . . . . . . . . 2 . . Authchips 1 | . . . . . . . . . . . . . . . . 1 . . Time 139 | . . . . . . . . . . . . . . . . 139 . . Total Part Build Rating 18 | . . . . . . . . . . . . . . . . 18 . . Part Studies Acquired 2 | . . . . . . . . . . 1 . . . . . . 1 . Parts Repaired 9 | . 1 . 1 . . . 1 3 . 1 . . . . . 2 . . Time 310 | . 18 . 25 . . . 51 152 . 25 . . . . . 39 . . Parts Recycled . | . . . . . . . . . . . . . . . . . . . Recycled Matter 24 | . . . . . . . . . . . . . . . . . 24 . Retrieved Matter 24 | . . . . . . . . . . . . . . . . . 24 . Retrieved Components . | . . . . . . . . . . . . . . . . . . . Parts Scanalyzed 5 | . . . 1 . . . . . . 2 . . . . . 2 . . Part Schematics Acquired 4 | . . . 1 . . . . . . 2 . . . . . 1 . . Parts Damaged 1 | . . . . . . . . . . . . . . . . . 1 . Bothacking | -11 -10 -10 -9 -9 -9 -8 -8 -7 -7 -6 -5 -5 -5 -5 -4 -4 -3 -3 ------------ Run | Yrd Mat Min Mat Min Exi Min Mat Fac DSF Fac Fac Upp Upp War Pro Fac Res DSF Used RIF Installer . | . . . . . . . . . . . . . . . . . . . Robots Hacked . | . . . . . . . . . . . . . . . . . . . Non-combat . | . . . . . . . . . . . . . . . . . . . Combat . | . . . . . . . . . . . . . . . . . . . Robot Hacks Applied . | . . . . . . . . . . . . . . . . . . . Relay Couplers Released . | . . . . . . . . . . . . . . . . . . . Fabnet Peak Effective % . | . . . . . . . . . . . . . . . . . . . Robots Rewired . | . . . . . . . . . . . . . . . . . . . Allies Hacked . | . . . . . . . . . . . . . . . . . . . Hacks Repelled . | . . . . . . . . . . . . . . . . . . . Allies | -11 -10 -10 -9 -9 -9 -8 -8 -7 -7 -6 -5 -5 -5 -5 -4 -4 -3 -3 -------- Run | Yrd Mat Min Mat Min Exi Min Mat Fac DSF Fac Fac Upp Upp War Pro Fac Res DSF Total Allies 8 | . . 4 . . . . 1 . 1 . . . 2 . . . . . Largest Group 3 | . . 3 2 . . . 1 . 1 . . . 1 . . . . . Highest-Rated Group 40 | . . 40 24 . . . 18 . 24 . . . 12 . . . . . Highest-Rated Ally 31 | . . 31 16 . . . 18 . 24 . . . 12 . . . . . Initial Warlord ECA Mod 9 | . . . . . . . . . . 9 8 8 8 8 7 7 6 6 Total Orders 1 | . . . . . . . . . 1 . . . . . . . . . STAY 1 | . . . . . . . . . 1 . . . . . . . . . Ally Attacks 56 | . . 17 10 . . . 9 . 15 . . . 5 . . . . . Total Damage 1123 | . . 233 71 . . . 378 . 395 . . . 46 . . . . . Kills 10 | . . 4 1 . . . 3 . 2 . . . . . . . . . Allies Corrupted 1 | . . . 1 . . . . . . . . . . . . . . . Allies Melted . | . . . . . . . . . . . . . . . . . . . Field Lobotomies 4 | . . . . . . . 1 . 1 . . . 2 . . . . . Intel | -11 -10 -10 -9 -9 -9 -8 -8 -7 -7 -6 -5 -5 -5 -5 -4 -4 -3 -3 ------- Run | Yrd Mat Min Mat Min Exi Min Mat Fac DSF Fac Fac Upp Upp War Pro Fac Res DSF Active Infowar (turns) 4460 | . . . . . . . . 219 27 315 226 114 223 526 270 2033 284 223 Optics 2548 | . . . . . . . . . . . 226 114 223 526 270 1189 . . Structural 246 | . . . . . . . . 219 27 . . . . . . . . . T.N.C. 1192 | . . . . . . . . . . . . . . . . 685 284 223 Machine Analysis 657 | . . . . . . . . . . 315 226 114 2 . . . . . Jamming 481 | . . . . . . . . . . . . . . . . 462 19 . Robot Analysis Total 3 | . 2 . . . . . . . . . . . . . . 1 . . Derelict Logs Recovered 6 | . . 1 . . . . . . . . . 2 1 . 2 . . . Drone Launches . | . . . . . . . . . . . . . . . . . . . Drone Recoveries . | . . . . . . . . . . . . . . . . . . . Exploration | -11 -10 -10 -9 -9 -9 -8 -8 -7 -7 -6 -5 -5 -5 -5 -4 -4 -3 -3 ------------- Run | Yrd Mat Min Mat Min Exi Min Mat Fac DSF Fac Fac Upp Upp War Pro Fac Res DSF Turns Passed 9879 | 64 944 396 930 618 303 532 1170 230 200 508 226 114 223 526 270 2118 284 223 Spaces Moved 9835 | 22 713 294 527 394 232 366 641 151 194 928 347 264 361 967 421 2517 424 72 Core . | . . . . . . . . . . . . . . . . . . . Treads 81 | . . . 1 . . . 80 . . . . . . . . . . . Legs 14 | 14 . . . . . . . . . . . . . . . . . . Wheels 3094 | 8 713 294 526 394 232 366 561 . . . . . . . . . . . Hover 6646 | . . . . . . . . 151 194 928 347 264 361 967 421 2517 424 72 Flight . | . . . . . . . . . . . . . . . . . . . Fastest Speed 40 | 95 95 115 130 130 130 130 130 42 42 46 42 42 42 42 46 40 60 43 Average Speed 72 | 110 108 115 130 130 130 130 136 42 46 46 45 42 45 42 46 48 60 57 Slowest Speed 320 | 120 115 115 320 130 130 130 160 42 115 46 46 42 104 46 46 135 60 132 Overloaded Moves . | . . . . . . . . . . . . . . . . . . . Propulsion Burnouts . | . . . . . . . . . . . . . . . . . . . Robots Hopped . | . . . . . . . . . . . . . . . . . . . Potential Cave-ins 1 | . . . . . . . . . . . . . . . . 1 . . Cave-ins Triggered 2 | . . . . . . . . . . . . . . . . 2 . . Exploration Rate (%) 50 | 3 95 79 35 71 61 76 49 3 90 23 10 46 52 96 64 46 10 43 Regions Visited 18 Branch Regions 8 Pre-discovered Areas 2 | . . . . . 1 . . . . . . 1 . . . . . . Known Exits Taken 6 | . . . . . . . 1 1 . . 1 . . . 1 1 1 . Unknown Exits Taken 11 | 1 1 1 1 1 1 1 . . . 1 . 1 1 1 . . . . Scrap Searched 8 | . . 1 . 3 . . . . . . . 2 . . 2 . . . Spaces Dug 113 | . . . . . . . . . . 3 4 . 35 . . 71 . . Terrain Destroyed 371 | . . . . 16 . . . . . 3 4 . 104 . . 170 50 24 Melee 19 | . . . . . . . . . . 3 4 . . . . 12 . . Projectile 75 | . . . . 1 . . . . . . . . . . . 69 5 . AOE 276 | . . . . 15 . . . . . . . . 104 . . 88 45 24 Terrain Rammed . | . . . . . . . . . . . . . . . . . . . Walls Destroyed . | . . . . . . . . . . . . . . . . . . . Machines Disabled . | . . . . . . . . . . . . . . . . . . . Actions | -11 -10 -10 -9 -9 -9 -8 -8 -7 -7 -6 -5 -5 -5 -5 -4 -4 -3 -3 --------- Run | Yrd Mat Min Mat Min Exi Min Mat Fac DSF Fac Fac Upp Upp War Pro Fac Res DSF Total 11924 | 45 813 335 720 436 234 397 834 318 267 997 402 266 399 1074 487 3220 443 237 Wait 1296 | 7 36 27 99 . . 18 109 152 18 26 30 . 18 93 60 456 4 143 Move 9816 | 21 712 293 526 393 231 365 640 150 193 927 346 263 360 966 420 2515 423 72 Hop . | . . . . . . . . . . . . . . . . . . . Pick Up 91 | 2 13 2 16 4 1 1 9 2 5 11 4 1 1 4 1 11 2 1 Fast Attach 39 | . 3 . 2 . . . 2 1 3 3 . . . . . 17 2 6 Attach 52 | 2 . . 2 4 . 1 6 5 3 2 2 . 3 1 1 16 3 1 Detach 19 | 2 1 . . . . . 1 2 . 1 . . 2 . . 8 . 2 Swap 131 | . 7 1 15 2 1 1 12 2 12 7 1 1 4 3 . 56 3 3 Drop 106 | 2 7 3 29 2 1 . 8 4 7 10 3 1 . 3 . 24 1 1 Fire 313 | 9 34 9 31 31 . 11 47 . 16 6 2 . 11 4 5 84 5 8 Melee 42 | . . . . . . . . . . 4 6 . . . . 32 . . Ram . | . . . . . . . . . . . . . . . . . . . Kick . | . . . . . . . . . . . . . . . . . . . Crush . | . . . . . . . . . . . . . . . . . . . Escape Stasis 19 | . . . . . . . . . 10 . 8 . . . . 1 . . Rewire . | . . . . . . . . . . . . . . . . . . . Trap . | . . . . . . . . . . . . . . . . . . . Miscellaneous . | . . . . . . . . . . . . . . . . . . . Route ------- -11/Scrapyard -10/Materials (discovered 5 exits: *Mat x3 / [*Min] / [*Sub]) -10/Mines -9/Materials -9/Mines (discovered 2 exits: *Mat / *Exi) -9/Exiles -8/Mines -8/Materials (discovered 3 exits: *Fac x3) -7/Factory -7/DSF -6/Factory (discovered 3 exits: *Fac x2 / [*Low]) -5/Factory (discovered 4 exits: *Upp x2 / Ext x2) -5/Upper Caves -5/Upper Caves -5/Warlord -4/Proximity Caves -4/Factory (discovered 3 exits: *Res x3) -3/Research (discovered 2 exits: Qua / DSF) -3/DSF History --------- Turn | Location | Event 1 | -11/Scrapyard | Discovered new exit (range 3) 65 | -11/Scrapyard | Entered Materials 313 | -10/Materials | Build established: Mutant 354 | -10/Materials | Discovered new exit (range 7) 467 | -10/Materials | Discovered new exit (range 7) 578 | -10/Materials | Repaired Broken Lgt. Treads 666 | -10/Materials | Discovered new exit (range 15) 786 | -10/Materials | Discovered new exit (range 10) 857 | -10/Materials | Discovered new exit (range 10) 1009 | -10/Materials | Entered Mines 1014 | -10/Mines | Received a Mining Laser from a helpful Derelict 1277 | -10/Mines | Assisted by bots powering up and referring to "LRC-V3" 1317 | -10/Mines | Learned Materials garrison access intel 1339 | -10/Mines | Discovered new exit (range 13) 1405 | -10/Mines | Entered Materials 1405 | -9/Materials | Accompanied by 2 allies 1405 | -9/Materials | Evolved 2 slots: Utility x1, Weapon x1 1785 | -9/Materials | Build established: Scavenger-Gunner 1837 | -9/Materials | Central database locked down 2080 | -9/Materials | Discovered new exit (range 15) 2210 | -9/Materials | Repaired Beamcaster 2335 | -9/Materials | Entered Mines 2458 | -9/Mines | A weapon hastily lodged in a ceiling crevice suddenly fell to the ground 2492 | -9/Mines | Discovered new exit (range 8) 2508 | -9/Mines | Build established: Gunner 2727 | -9/Mines | Assembled infested the area 2802 | -9/Mines | Lost 4 parts (2n1u1w) 2874 | -9/Mines | Met a Derelict shopkeep closing up shop 2947 | -9/Mines | Deemed a non-threat by the Exiles lab entrance 2948 | -9/Mines | Discovered new exit (range 5) 2953 | -9/Mines | Entered Exiles 2985 | -9/Exiles | Met 8R-AWN 3007 | -9/Exiles | Met EX-HEX 3044 | -9/Exiles | Met EX-BIN 3061 | -9/Exiles | Aligned with FarCom system 3063 | -9/Exiles | Given EX-Vault access code 3093 | -9/Exiles | Opened EX-Vault 3102 | -9/Exiles | Found Field Lobotomy Kit 3131 | -9/Exiles | Warned to stay clear of 0b10 Research branches 3170 | -9/Exiles | Met EX-DEC 3178 | -9/Exiles | Learned location of Zion (-6) 3245 | -9/Exiles | Discovered new exit (range 10) 3256 | -9/Exiles | Left Exiles lab with Field Lobotomy Kit 3256 | -9/Exiles | Entered Mines 3571 | -8/Mines | Build established: Skirmisher 3728 | -8/Mines | Discovered new exit (range 4) 3788 | -8/Mines | Entered Materials 3788 | -8/Materials | Evolved 2 slots: Propulsion x1, Utility x1 3789 | -8/Materials | Loaded intel: 1 garrison access location 4018 | -8/Materials | Identified exit to Factory 4690 | -8/Materials | Assimilated L-31 Rogue with FLK Orb 4805 | -8/Materials | Repaired Imp. Assault Rifle 4958 | -8/Materials | Entered Factory 4958 | -7/Factory | Evolved 2 slots: Propulsion x2 5074 | -7/Factory | Repaired Broken Cmb. Airjet 5125 | -7/Factory | Repaired Adv. Heat Sink 5158 | -7/Factory | Repaired Hrd. Light Armor Plating 5188 | -7/Factory | Identified exit to DSF 5188 | -7/Factory | Entered DSF 5208 | -7/DSF | Additional patrols routed to DSF 5266 | -7/DSF | Discovered new exit (range 14) 5297 | -7/DSF | Assimilated X-57 Shotgunner with FLK Orb 5344 | -7/DSF | Lost 4 parts (1n1u2w) 5361 | -7/DSF | Sterilization system engaged 5381 | -7/DSF | Ambient heat levels rising (+10) 5381 | -7/DSF | Destroyed 9 combat bots 5388 | -7/DSF | Entered Factory 5388 | -6/Factory | Evolved 2 slots: Utility x2 5441 | -6/Factory | Discovered new exit (range 8) 5738 | -6/Factory | Discovered new exit (range 15) 5778 | -6/Factory | Build established: Hacker-Mutant 5811 | -6/Factory | Discovered new exit (range 13) 5845 | -6/Factory | Repaired Cmb. Airjet 5896 | -6/Factory | Entered another Factory area 5896 | -5/Factory | Evolved 2 slots: Utility x2 6042 | -5/Factory | Discovered new exit (range 21) 6055 | -5/Factory | Identified exit to Upper Caves 6055 | -5/Factory | Identified exit to Extension 6122 | -5/Factory | Entered Upper Caves 6126 | -5/Upper Caves | Entered a destroyed Warlord outpost 6136 | -5/Upper Caves | Met a Warlord Commander 6137 | -5/Upper Caves | Learned location of Warlord (-5) 6138 | -5/Upper Caves | Warlord Commander delivered Encrypted Comm Array 6152 | -5/Upper Caves | Learned 4 Factory zone layouts 6194 | -5/Upper Caves | Learned Factory terminal intel 6233 | -5/Upper Caves | Discovered new exit (range 7) 6236 | -5/Upper Caves | Entered another Upper Caves area 6236 | -5/Upper Caves | Spotted B-75 Beast 6357 | -5/Upper Caves | Assimilated S-27 Virus with FLK Orb 6360 | -5/Upper Caves | Assimilated S-27 Virus with FLK Orb 6430 | -5/Upper Caves | Discovered new exit (range 10) 6434 | -5/Upper Caves | Encountered a Warlord checkpoint 6444 | -5/Upper Caves | Learned Factory stockpile data 6459 | -5/Upper Caves | Entered Warlord 6475 | -5/Warlord | Discovered new exit (range 14) 6526 | -5/Warlord | Build established: Hacker-Tank 6572 | -5/Warlord | Found Prototype Special Weapon 6628 | -5/Warlord | Learned Armory stockpile data 6628 | -5/Warlord | Learned Research stockpile data 6629 | -5/Warlord | Learned 4 Armory zone layouts 6629 | -5/Warlord | Learned 4 Access zone layouts 6629 | -5/Warlord | Learned 4 Testing zone layouts 6629 | -5/Warlord | Learned Testing security intel 6629 | -5/Warlord | Learned Quarantine security intel 6629 | -5/Warlord | Learned Armory garrison access intel 6702 | -5/Warlord | Visited the Vortex Lab 6703 | -5/Warlord | Warlord's base attacked by MAIN.C 6705 | -5/Warlord | Found Prototype Piercing Weapon 6709 | -5/Warlord | Identified Vortex Lance 6774 | -5/Warlord | Met Warlord 6890 | -5/Warlord | Opened side exit 6891 | -5/Warlord | Lost 4 allies 6985 | -5/Warlord | Entered Proximity Caves 7058 | -4/Proximity Caves | Spotted B-86 Titan 7088 | -4/Proximity Caves | Identified exit to Factory 7147 | -4/Proximity Caves | Attracted the attention of an 0b10 checkpoint 7255 | -4/Proximity Caves | Entered Factory 7255 | -4/Factory | Evolved 2 slots: Power x1, Propulsion x1 7256 | -4/Factory | Identified exit to Research 7259 | -4/Factory | Loaded intel: 26 terminal locations 7387 | -4/Factory | Found Prototype Launcher 7387 | -4/Factory | Identified Tactical Quantum Warhead 7389 | -4/Factory | Found Tactical Quantum Warhead 7463 | -4/Factory | Repaired Mic. Nuclear Core 7516 | -4/Factory | Watched by a mysterious "MATRIX" hacker. 7560 | -4/Factory | Build established: Hacker-Skirmisher 7648 | -4/Factory | Discovered exit to Research (range 18) 7688 | -4/Factory | Repaired Cmb. Airjet 7776 | -4/Factory | Central database locked down 8025 | -4/Factory | Fabricated Cmb. Linear Gravjet (x2) 8084 | -4/Factory | Found Prototype Processor 8084 | -4/Factory | Identified Exp. Signal Interpreter 8118 | -4/Factory | Noticed a derelict Sapper rigging charges 8120 | -4/Factory | Garrison activated, responded to threat 8503 | -4/Factory | Crushed by falling debris 8538 | -4/Factory | Found Prototype Processor 8538 | -4/Factory | Identified Exp. Terrain Scan Processor 8764 | -4/Factory | Discovered exit to Research (range 5) 8804 | -4/Factory | Build established: Scavenger-Skirmisher 9031 | -4/Factory | System corruption reached 10% 9088 | -4/Factory | Lost 5 parts (3p1n1w) 9361 | -4/Factory | Crushed by falling debris 9373 | -4/Factory | Entered Research 9373 | -3/Research | Evolved 2 slots: Propulsion x1, Utility x1 9374 | -3/Research | Identified exit to Quarantine 9392 | -3/Research | Lost 8 parts (1p3n2u2w) 9512 | -3/Research | Identified RU-N14's Throwing Claymores v3 9656 | -3/Research | Identified exit to DSF 9657 | -3/Research | Entered DSF 9695 | -3/DSF | Additional patrols routed to DSF 9711 | -3/DSF | Build established: Scavenger-Gunner 9880 | -3/DSF | Self-destructed Last Messages --------------- 09766_ Slug penetrates H-71 Marshal. 09768_ H-71 Marshal calls for reinforcements. 09768_ ALERT: Hostile activity reported, dispatching reinforcements to area. 09768_ RU-N14's Throwing Claymores v3 blasted off. 09770_ Acquired RU-N14's Throwing Claymores v3. 09770_ Slug penetrates Wall. 09772_ Penetrated by Slug. 09772_ Antigrav System destroyed. 09772_ Knocked back. 09773_ RU-N14's Throwing Claymores v3 expended. 09775_ Acquired 11 matter. 09825_ Matter Repository disabled. 09828_ Acquired 18 matter. 09832_ Acquired Imp. Arc Projector. 09869_ Hacking Suite destroyed. 09874_ Antigrav System destroyed. 09874_ Lgt. Ion Engine destroyed. 09874_ Mic. Fission Core destroyed. 09878_ Com. HERF Cannon destroyed. Map ----- +----------------------------------------------------+ | | | | | | | | | | | | | | | | | | | | | | | | | | | | | | | ??????????????????????????????????????? | | ??????????????????????????????????????? | | ??????????????????????????????????????? | | ???????????????????????????##?????????? | | ??????????????????????????#""?????????? | | ??????????????????????????#"#?????????? | | ?????????#########???????##"####??????? | | ?????????# !!! #########"""""#??????? | | ?????????# !!! #[[[# ##" """#??????? | | ?????????# x !""##"????? | | ?????????# ^ x @ """""????? | | ?????????### ###[[[#[[## ""###????? | | ???????????# ??#[[[#[[### ###??????? | | ??????????]] ??########## ##???????? | | ?????????#]] ?????????#[[ #???????? | | ?????????#]] ?????????#[[ #???????? | | ?????????### ?????????### ##???????? | | ???????????= ?????????# #???????? | | ???????????= ?????????# #???????? | | ??????????== ??????????# #???????? | | ??????????## ??????????### ###??????? | | ???????????# ???????# ???# !!##?????? | | ??????????? ??#"===# ## !!"#?????? | | ??????????? h ##?????? | | ??????????? H #??????? | | ??????????? " ????? | | ???????????? ##!!!#!!!## ]]####???? | | ?????????????????#!!?#!!!?# ]]#??????? | | ?????????????????#???###??######??????? | | ??????????????????????????????????????? | | ??????????????????????????????????????? | | ??????????????????????????????????????? | | ??????????????????????????????????????? | | ??????????????????????????????????????? | | ??????????????????????????????????????? | +----------------------------------------------------+ Best States ------------- Heat Dissipation 84 Energy Generation 37 Energy Capacity 375 Matter Stores 300 Matter Capacity 300 Sight Range 22 Terrain Scan Density 1010 Jamming Range 16 Base Temperature (-) 200 Armor Coverage 225 Evasion (%) 68 Targeting Accuracy 8 Core Analysis 6 Armor Integrity Analysis 30 Recoil Reduction 3 Offensive Hacking 20 Defensive Hacking 10 Authchip Count 1 Item Schematics ----------------- Grenade Launcher | -9/Materials | Scanalyzed Imp. Reaction Control System | -6/Factory | Scanalyzed Imp. Terrain Scanner | -6/Factory | Scanalyzed Cmb. Gravmag System | -4/Factory | Hacked Hyp. Gauss Rifle | -4/Factory | Hacked Dispersion Rifle | -4/Factory | Scanalyzed Cmb. Linear Gravjet | -4/Factory | Hacked Robot Schematics ------------------ None Fabricated ------------ Cmb. Linear Gravjet | x2 | -4/Factory | Authchip Repaired ---------- Lgt. Treads | 62% | -10/Materials | Broken Beamcaster | 54% | -9/Materials Imp. Assault Rifle | 3% | -8/Materials Cmb. Airjet | 67% | -7/Factory | Broken Adv. Heat Sink | 72% | -7/Factory Hrd. Light Armor Plating | 84% | -7/Factory Cmb. Airjet | 93% | -6/Factory Mic. Nuclear Core | 24% | -4/Factory Cmb. Airjet | 90% | -4/Factory Studied --------- Imp. Grenade Launcher | -6/Factory | Hacked Cmb. Gravmag System | -3/Research | Hacked Alien Tech Used ----------------- None Achievements -------------- None Challenges ------------ None Game ------ Seed BiometalLaserDetonator Manual? 0 Play Time 02:45:32 Cumulative 114.0 hours Start 2026.04.12 @ 09:35:18 End 2026.04.12 @ 12:37:11 Sessions 7 Manual Loads 0 Difficulty Rogue Special Mode None Game No. 94 Rogue 94 Adventurer 0 Explorer 0 Win Type - Total 5 Types 3/0/1/1/0/0/0/0/0/0 Lore% 57 Gallery% 49 Achievement% 43 Wizard Run 0 Options --------- Layout 0 ASCII 0 Keyboard 1 Movement Arrows Keybinds 0 Fullscreen 2 Font 18/X11 Map View 76x50 Zoom Use 0% Tactical HUD 1 Map Filters NONE Filters NONE Steam 1 RUN: afd376e5-5a92-4e57-a6ec-63d70bb7602c